[Event "*** Titled Tuesday Blitz"]
[Site "Chess.com"]
[Date "2020.12.29"]
[Round "8"]
[White "ChrisTool2"]
[Black "Margency"]
[Result "0-1"]
[WhiteElo "2370"]
[BlackElo "2590"]
[TimeControl "180+1"]
[EndTime "11:27:50 PST"]
[Termination "Margency won on time"]

1. d4 {[%clk 0:03:00.9]} 1... d5 {[%clk 0:02:59.9]} 2. c4 {[%clk 0:02:58.7]}
2... e6 {[%clk 0:03:00]} 3. Nf3 {[%clk 0:02:57.7]} 3... c5 {[%clk 0:03:00.3]} 4.
Nc3 {[%clk 0:02:56.8]} 4... Nf6 {[%clk 0:02:58.6]} 5. e3 {[%clk 0:02:53.3]} 5...
a6 {[%clk 0:02:58.4]} 6. cxd5 {[%clk 0:02:51.2]} 6... exd5 {[%clk 0:02:58.1]} 7.
Be2 {[%clk 0:02:49]} 7... Nc6 {[%clk 0:02:57.8]} 8. O-O {[%clk 0:02:47.3]} 8...
Bd6 {[%clk 0:02:55.7]} 9. dxc5 {[%clk 0:02:45.5]} 9... Bxc5 {[%clk 0:02:56.1]}
10. Na4 {[%clk 0:02:31.9]} 10... Ba7 {[%clk 0:02:52.6]} 11. b3 {[%clk
0:02:30.2]} 11... O-O {[%clk 0:02:52.2]} 12. Bb2 {[%clk 0:02:26.8]} 12... Bg4
{[%clk 0:02:38.1]} 13. Bxf6 {[%clk 0:02:08.6]} 13... Qxf6 {[%clk 0:02:35.4]} 14.
Qxd5 {[%clk 0:02:07.8]} 14... Rad8 {[%clk 0:02:29]} 15. Qe4 {[%clk 0:02:01.4]}
15... Bh5 {[%clk 0:02:12.4]} 16. Rfd1 {[%clk 0:01:53.3]} 16... Rfe8 {[%clk
0:02:07.9]} 17. Qc2 {[%clk 0:01:38.4]} 17... Rc8 {[%clk 0:01:50.8]} 18. Rac1
{[%clk 0:01:27.4]} 18... h6 {[%clk 0:00:50.1]} 19. Qb2 {[%clk 0:01:19.1]} 19...
Qe7 {[%clk 0:00:35.6]} 20. Nc3 {[%clk 0:00:52.7]} 20... Qf6 {[%clk 0:00:25.7]}
21. Qd2 {[%clk 0:00:30.3]} 21... Bb8 {[%clk 0:00:19.1]} 22. Nd5 {[%clk
0:00:25.7]} 22... Qf5 {[%clk 0:00:13.7]} 23. Qd3 {[%clk 0:00:18.8]} 23... Qxd3
{[%clk 0:00:11.4]} 24. Bxd3 {[%clk 0:00:17]} 24... Ne5 {[%clk 0:00:08.5]} 25.
Be2 {[%clk 0:00:13.9]} 25... Rxc1 {[%clk 0:00:07.3]} 26. Rxc1 {[%clk 0:00:13.6]}
26... Rd8 {[%clk 0:00:05.2]} 27. e4 {[%clk 0:00:07.8]} 27... Bxf3 {[%clk
0:00:03.9]} 28. gxf3 {[%clk 0:00:07.2]} 28... Kf8 {[%clk 0:00:03.5]} 29. Kf1
{[%clk 0:00:03.6]} 29... Ng6 {[%clk 0:00:04]} 30. f4 {[%clk 0:00:02.6]} 30...
Bxf4 {[%clk 0:00:04.2]} 0-1

[Event "*** Titled Tuesday Blitz"]
[Site "Chess.com"]
[Date "2020.12.29"]
[Round "8"]
[White "Eloist"]
[Black "zajka-molotok"]
[Result "0-1"]
[WhiteElo "2349"]
[BlackElo "2491"]
[TimeControl "180+1"]
[EndTime "11:27:51 PST"]
[Termination "zajka-molotok won on time"]

1. e4 {[%clk 0:03:00.9]} 1... c5 {[%clk 0:02:59.4]} 2. Nf3 {[%clk 0:02:59.3]}
2... e6 {[%clk 0:02:57.9]} 3. d4 {[%clk 0:02:58.7]} 3... cxd4 {[%clk 0:02:58.8]}
4. Nxd4 {[%clk 0:02:59.1]} 4... Nc6 {[%clk 0:02:57.1]} 5. Nc3 {[%clk 0:02:58]}
5... Qc7 {[%clk 0:02:56.6]} 6. Be3 {[%clk 0:02:57.6]} 6... a6 {[%clk 0:02:54.8]}
7. Bd3 {[%clk 0:02:57.4]} 7... Nf6 {[%clk 0:02:51]} 8. O-O {[%clk 0:02:55.2]}
8... d6 {[%clk 0:02:49.2]} 9. f4 {[%clk 0:02:48.2]} 9... Be7 {[%clk 0:02:48.7]}
10. Qf3 {[%clk 0:02:43.6]} 10... O-O {[%clk 0:02:46.1]} 11. Rae1 {[%clk
0:02:40.3]} 11... Nb4 {[%clk 0:02:16.4]} 12. Kh1 {[%clk 0:02:08.4]} 12... Nxd3
{[%clk 0:01:45.7]} 13. cxd3 {[%clk 0:02:09.3]} 13... b5 {[%clk 0:01:45.8]} 14.
Rc1 {[%clk 0:01:59.2]} 14... Qd7 {[%clk 0:01:42.6]} 15. e5 {[%clk 0:01:46]}
15... Bb7 {[%clk 0:01:41.7]} 16. Qh3 {[%clk 0:01:34]} 16... dxe5 {[%clk
0:01:32.2]} 17. fxe5 {[%clk 0:01:30.6]} 17... Nd5 {[%clk 0:01:32.3]} 18. Ne4
{[%clk 0:01:10]} 18... Nxe3 {[%clk 0:01:27.7]} 19. Qxe3 {[%clk 0:01:09.1]} 19...
Rac8 {[%clk 0:01:21.5]} 20. Nb3 {[%clk 0:01:04.1]} 20... Rxc1 {[%clk 0:01:19.2]}
21. Rxc1 {[%clk 0:00:59.1]} 21... Rc8 {[%clk 0:01:17.4]} 22. Rxc8+ {[%clk
0:00:18.1]} 22... Qxc8 {[%clk 0:01:18.3]} 23. Nec5 {[%clk 0:00:09.4]} 23... Bd5
{[%clk 0:01:15.9]} 24. h3 {[%clk 0:00:05.3]} 24... a5 {[%clk 0:01:11.2]} 25. d4
{[%clk 0:00:03.9]} 25... a4 {[%clk 0:01:09.2]} 26. Nc1 {[%clk 0:00:03.6]} 26...
h6 {[%clk 0:01:06.6]} 27. a3 {[%clk 0:00:03.3]} 27... Bg5 {[%clk 0:01:01.6]} 28.
Qg1 {[%clk 0:00:01.3]} 28... Qc6 {[%clk 0:01:00]} 29. N1d3 {[%clk 0:00:01]}
29... Bc4 {[%clk 0:00:53.8]} 30. Nb4 {[%clk 0:00:01.3]} 30... Qc8 {[%clk
0:00:49.2]} 31. Qf2 {[%clk 0:00:01.7]} 31... Qd8 {[%clk 0:00:48.3]} 32. Kg1
{[%clk 0:00:02]} 32... Bc1 {[%clk 0:00:44.2]} 33. Ne4 {[%clk 0:00:02.2]} 33...
Bd5 {[%clk 0:00:32.9]} 34. Nd6 {[%clk 0:00:02.5]} 34... f6 {[%clk 0:00:29.2]}
35. Qc2 {[%clk 0:00:02.1]} 35... Be3+ {[%clk 0:00:26]} 36. Kh1 {[%clk
0:00:02.3]} 36... Bxd4 {[%clk 0:00:25.9]} 0-1

[Event "*** Titled Tuesday Blitz"]
[Site "Chess.com"]
[Date "2020.12.29"]
[Round "8"]
[White "Evgeny81"]
[Black "VerdeNotte"]
[Result "0-1"]
[WhiteElo "2731"]
[BlackElo "2894"]
[TimeControl "180+1"]
[EndTime "11:27:52 PST"]
[Termination "VerdeNotte won on time"]

1. c4 {[%clk 0:03:00.9]} 1... g6 {[%clk 0:02:58.9]} 2. Nf3 {[%clk 0:03:00.7]}
2... Bg7 {[%clk 0:02:59.1]} 3. d4 {[%clk 0:03:01.3]} 3... Nf6 {[%clk 0:02:59.3]}
4. Nc3 {[%clk 0:03:01.7]} 4... O-O {[%clk 0:02:59.7]} 5. e4 {[%clk 0:03:02]}
5... d6 {[%clk 0:03:00.3]} 6. h3 {[%clk 0:03:01]} 6... e5 {[%clk 0:02:59.7]} 7.
d5 {[%clk 0:03:00]} 7... a5 {[%clk 0:03:00.1]} 8. g4 {[%clk 0:02:58.9]} 8... Na6
{[%clk 0:02:59.8]} 9. Be3 {[%clk 0:02:59]} 9... Kh8 {[%clk 0:02:54.8]} 10. Rg1
{[%clk 0:02:55.1]} 10... Ng8 {[%clk 0:02:54.5]} 11. Bd3 {[%clk 0:02:47]} 11...
f5 {[%clk 0:02:52]} 12. gxf5 {[%clk 0:02:45.8]} 12... gxf5 {[%clk 0:02:52.6]}
13. exf5 {[%clk 0:02:46.2]} 13... Bxf5 {[%clk 0:02:52.4]} 14. Bxf5 {[%clk
0:02:44.6]} 14... Rxf5 {[%clk 0:02:52.2]} 15. Ng5 {[%clk 0:02:38.6]} 15... Bh6
{[%clk 0:02:38.2]} 16. Qg4 {[%clk 0:02:13.2]} 16... Qf6 {[%clk 0:02:26.3]} 17.
Nce4 {[%clk 0:01:49]} 17... Qg6 {[%clk 0:02:25.5]} 18. O-O-O {[%clk 0:01:41.9]}
18... Re8 {[%clk 0:01:18]} 19. h4 {[%clk 0:01:34.6]} 19... Rf4 {[%clk
0:01:14.6]} 20. Bxf4 {[%clk 0:01:10.6]} 20... exf4 {[%clk 0:01:15.5]} 21. h5
{[%clk 0:00:45]} 21... Qg7 {[%clk 0:01:15.6]} 22. Ne6 {[%clk 0:00:44]} 22... Qe5
{[%clk 0:01:14.4]} 23. N4g5 {[%clk 0:00:29.6]} 23... Qf6 {[%clk 0:00:52.1]} 24.
Qxf4 {[%clk 0:00:16.6]} 24... Rxe6 {[%clk 0:00:42.8]} 25. Qxf6+ {[%clk
0:00:03.9]} 25... Rxf6 {[%clk 0:00:42.7]} 26. Kb1 {[%clk 0:00:03.5]} 26... Nc5
{[%clk 0:00:39.2]} 27. Rde1 {[%clk 0:00:03.8]} 27... Bxg5 {[%clk 0:00:29.4]} 28.
Rxg5 {[%clk 0:00:03.3]} 28... Rf8 {[%clk 0:00:29.8]} 29. Re3 {[%clk 0:00:01.7]}
29... h6 {[%clk 0:00:21.6]} 30. Rgg3 {[%clk 0:00:01.7]} 30... Kh7 {[%clk
0:00:21.1]} 31. Rgf3 {[%clk 0:00:02.1]} 31... Nf6 {[%clk 0:00:20.4]} 32. Re7+
{[%clk 0:00:01.8]} 32... Kh8 {[%clk 0:00:19.3]} 33. Rxc7 {[%clk 0:00:02.7]}
33... Nce4 {[%clk 0:00:18.1]} 34. Re7 {[%clk 0:00:02.8]} 34... Nd2+ {[%clk
0:00:18.2]} 0-1

[Event "*** Titled Tuesday Blitz"]
[Site "Chess.com"]
[Date "2020.12.29"]
[Round "8"]
[White "MVM2008"]
[Black "Gerryisplaying"]
[Result "1-0"]
[WhiteElo "2211"]
[BlackElo "2290"]
[TimeControl "180+1"]
[EndTime "11:27:55 PST"]
[Termination "MVM2008 won by checkmate"]

1. e4 {[%clk 0:03:00.9]} 1... d5 {[%clk 0:02:58.7]} 2. exd5 {[%clk 0:02:54.5]}
2... Qxd5 {[%clk 0:02:59.6]} 3. Nf3 {[%clk 0:02:54.7]} 3... Bg4 {[%clk
0:02:58.7]} 4. Be2 {[%clk 0:02:48]} 4... Nc6 {[%clk 0:02:58.5]} 5. O-O {[%clk
0:02:41.4]} 5... O-O-O {[%clk 0:02:45.7]} 6. c4 {[%clk 0:02:40.6]} 6... Qf5
{[%clk 0:02:36.9]} 7. Nc3 {[%clk 0:02:37.7]} 7... e5 {[%clk 0:02:30.3]} 8. d3
{[%clk 0:02:21.1]} 8... Nf6 {[%clk 0:02:22.6]} 9. h3 {[%clk 0:02:08.4]} 9...
Bxf3 {[%clk 0:02:18.2]} 10. Bxf3 {[%clk 0:02:09.3]} 10... Nd4 {[%clk 0:02:14.3]}
11. Be4 {[%clk 0:01:54.9]} 11... Nxe4 {[%clk 0:02:12.1]} 12. Nxe4 {[%clk
0:01:51]} 12... Be7 {[%clk 0:02:08.2]} 13. Qa4 {[%clk 0:01:46.6]} 13... Kb8
{[%clk 0:02:04.3]} 14. Be3 {[%clk 0:01:43.5]} 14... Qg6 {[%clk 0:01:49.1]} 15.
Bxd4 {[%clk 0:01:30.4]} 15... Rxd4 {[%clk 0:01:50]} 16. b4 {[%clk 0:01:29.7]}
16... Rxd3 {[%clk 0:01:45.7]} 17. f3 {[%clk 0:01:11.9]} 17... Rhd8 {[%clk
0:01:40.6]} 18. Rab1 {[%clk 0:01:01]} 18... b6 {[%clk 0:01:26.3]} 19. c5 {[%clk
0:00:25.9]} 19... f5 {[%clk 0:01:19.7]} 20. cxb6 {[%clk 0:00:18.6]} 20... Qxb6+
{[%clk 0:01:16.9]} 21. Nc5 {[%clk 0:00:16.6]} 21... Ka8 {[%clk 0:01:04.5]} 22.
Kh1 {[%clk 0:00:10]} 22... Bxc5 {[%clk 0:01:04.5]} 23. bxc5 {[%clk 0:00:07.9]}
23... Qxc5 {[%clk 0:01:05.4]} 24. Rfc1 {[%clk 0:00:06.1]} 24... Rc3 {[%clk
0:00:53.8]} 25. Rxc3 {[%clk 0:00:03.1]} 25... Qxc3 {[%clk 0:00:54.7]} 26. Qb5
{[%clk 0:00:03.5]} 26... Rd1+ {[%clk 0:00:18.2]} 27. Rxd1 {[%clk 0:00:03.5]}
27... Qd4 {[%clk 0:00:16.5]} 28. Rxd4 {[%clk 0:00:03.5]} 28... exd4 {[%clk
0:00:17.4]} 29. Qd5+ {[%clk 0:00:04]} 29... Kb8 {[%clk 0:00:17.6]} 30. Qxd4
{[%clk 0:00:04.9]} 30... Kb7 {[%clk 0:00:18]} 31. Qxg7 {[%clk 0:00:05.8]} 31...
Kc6 {[%clk 0:00:18.8]} 32. Qxh7 {[%clk 0:00:06.4]} 32... Kb5 {[%clk 0:00:19.7]}
33. Qxf5+ {[%clk 0:00:07.3]} 33... Kc4 {[%clk 0:00:20.6]} 34. h4 {[%clk
0:00:08.1]} 34... Kc3 {[%clk 0:00:21.5]} 35. h5 {[%clk 0:00:09]} 35... Kb2
{[%clk 0:00:22.1]} 36. h6 {[%clk 0:00:09.9]} 36... Kxa2 {[%clk 0:00:22.6]} 37.
h7 {[%clk 0:00:10.8]} 37... Kb3 {[%clk 0:00:23.4]} 38. Qc5 {[%clk 0:00:10.7]}
38... Ka4 {[%clk 0:00:23.1]} 39. Qxc7 {[%clk 0:00:10.6]} 39... a5 {[%clk
0:00:24]} 40. h8=Q {[%clk 0:00:10.8]} 40... Ka3 {[%clk 0:00:23.9]} 41. Qhc3+
{[%clk 0:00:10.5]} 41... Ka2 {[%clk 0:00:23.3]} 42. Q7xa5+ {[%clk 0:00:10.7]}
42... Kb1 {[%clk 0:00:23.2]} 43. Qaa1# {[%clk 0:00:11.4]} 1-0

[Event "*** Titled Tuesday Blitz"]
[Site "Chess.com"]
[Date "2020.12.29"]
[Round "8"]
[White "EdmundPlayer"]
[Black "Euge_chess"]
[Result "0-1"]
[WhiteElo "2185"]
[BlackElo "2083"]
[TimeControl "180+1"]
[EndTime "11:27:55 PST"]
[Termination "Euge_chess won on time"]

1. e4 {[%clk 0:03:00.9]} 1... e5 {[%clk 0:02:59.5]} 2. Nc3 {[%clk 0:02:59.1]}
2... Nf6 {[%clk 0:02:55.9]} 3. Bc4 {[%clk 0:02:57.5]} 3... Nc6 {[%clk
0:02:55.5]} 4. d3 {[%clk 0:02:54.8]} 4... Bb4 {[%clk 0:02:53.7]} 5. Ne2 {[%clk
0:02:54.7]} 5... d5 {[%clk 0:02:49.5]} 6. exd5 {[%clk 0:02:55]} 6... Nxd5 {[%clk
0:02:49.3]} 7. O-O {[%clk 0:02:54]} 7... Nxc3 {[%clk 0:02:46.5]} 8. Nxc3 {[%clk
0:02:48.4]} 8... O-O {[%clk 0:02:42.4]} 9. f4 {[%clk 0:02:41.8]} 9... Qd4+
{[%clk 0:02:36.4]} 10. Kh1 {[%clk 0:02:40.6]} 10... Bxc3 {[%clk 0:02:35.1]} 11.
bxc3 {[%clk 0:02:38.5]} 11... Qxc3 {[%clk 0:02:35.5]} 12. Bd2 {[%clk 0:02:29.7]}
12... Qd4 {[%clk 0:02:34.8]} 13. f5 {[%clk 0:02:28.5]} 13... Kh8 {[%clk
0:02:08.8]} 14. Qh5 {[%clk 0:02:13.8]} 14... e4 {[%clk 0:01:20.1]} 15. c3 {[%clk
0:01:44.3]} 15... Qf6 {[%clk 0:01:08.5]} 16. dxe4 {[%clk 0:01:31.7]} 16... Ne5
{[%clk 0:01:07.8]} 17. Bb3 {[%clk 0:01:21.7]} 17... h6 {[%clk 0:01:07.3]} 18.
Bf4 {[%clk 0:01:15.5]} 18... c5 {[%clk 0:01:02.7]} 19. Bxe5 {[%clk 0:01:06.3]}
19... Qxe5 {[%clk 0:01:02.3]} 20. Bxf7 {[%clk 0:01:06.6]} 20... Bd7 {[%clk
0:00:48.4]} 21. Rad1 {[%clk 0:00:45.6]} 21... Bc6 {[%clk 0:00:45.5]} 22. Bd5
{[%clk 0:00:36.5]} 22... Rac8 {[%clk 0:00:35.4]} 23. c4 {[%clk 0:00:32.7]} 23...
Rf6 {[%clk 0:00:24.3]} 24. Rf3 {[%clk 0:00:27.5]} 24... Qb2 {[%clk 0:00:21.2]}
25. Bxc6 {[%clk 0:00:24.4]} 25... bxc6 {[%clk 0:00:19.8]} 26. h3 {[%clk
0:00:15.8]} 26... Qc2 {[%clk 0:00:18.7]} 27. Rf4 {[%clk 0:00:11.2]} 27... Qxc4
{[%clk 0:00:17.1]} 28. Re1 {[%clk 0:00:08.8]} 28... Qc3 {[%clk 0:00:16]} 29.
Rff1 {[%clk 0:00:08]} 29... Qe5 {[%clk 0:00:16]} 30. g4 {[%clk 0:00:06.9]} 30...
Kg8 {[%clk 0:00:14.9]} 31. h4 {[%clk 0:00:04.7]} 31... Rcf8 {[%clk 0:00:14.2]}
32. g5 {[%clk 0:00:04.7]} 32... Rd6 {[%clk 0:00:13.4]} 33. Rf3 {[%clk
0:00:01.5]} 33... Rd4 {[%clk 0:00:13.2]} 0-1

[Event "*** Titled Tuesday Blitz"]
[Site "Chess.com"]
[Date "2020.12.29"]
[Round "8"]
[White "vova-79"]
[Black "FishThatRoared"]
[Result "1-0"]
[WhiteElo "2532"]
[BlackElo "2107"]
[TimeControl "180+1"]
[EndTime "11:27:56 PST"]
[Termination "vova-79 won on time"]

1. d4 {[%clk 0:03:00.9]} 1... d5 {[%clk 0:02:59.3]} 2. c4 {[%clk 0:03:00.7]}
2... c6 {[%clk 0:02:58.7]} 3. Nc3 {[%clk 0:03:00.7]} 3... Nf6 {[%clk 0:02:59]}
4. e3 {[%clk 0:02:58.4]} 4... a6 {[%clk 0:02:59]} 5. Qc2 {[%clk 0:02:57.7]} 5...
g6 {[%clk 0:02:53.5]} 6. Bd3 {[%clk 0:02:56.5]} 6... Bg7 {[%clk 0:02:52.6]} 7.
b3 {[%clk 0:02:51.1]} 7... O-O {[%clk 0:02:50.6]} 8. Nf3 {[%clk 0:02:48.7]} 8...
b5 {[%clk 0:02:29]} 9. O-O {[%clk 0:02:46.5]} 9... Nbd7 {[%clk 0:02:21.4]} 10.
Bb2 {[%clk 0:02:40.8]} 10... Re8 {[%clk 0:02:11.2]} 11. Rad1 {[%clk 0:02:38.4]}
11... Bb7 {[%clk 0:02:00.5]} 12. Rfe1 {[%clk 0:02:28.2]} 12... Qb8 {[%clk
0:01:57.2]} 13. Ba1 {[%clk 0:02:19]} 13... b4 {[%clk 0:01:50.3]} 14. Na4 {[%clk
0:02:16.4]} 14... c5 {[%clk 0:01:50]} 15. dxc5 {[%clk 0:02:10]} 15... Rc8 {[%clk
0:01:29.9]} 16. cxd5 {[%clk 0:02:05.2]} 16... Bxd5 {[%clk 0:01:26.3]} 17. e4
{[%clk 0:01:56.9]} 17... Bc6 {[%clk 0:01:25.8]} 18. e5 {[%clk 0:01:53.7]} 18...
Nd5 {[%clk 0:01:22]} 19. e6 {[%clk 0:01:49.1]} 19... fxe6 {[%clk 0:01:20.1]} 20.
Bxg7 {[%clk 0:01:46.4]} 20... Kxg7 {[%clk 0:01:20.2]} 21. Rxe6 {[%clk
0:01:41.1]} 21... Bxa4 {[%clk 0:01:14.9]} 22. bxa4 {[%clk 0:01:26.2]} 22... Nxc5
{[%clk 0:01:08.7]} 23. Qb2+ {[%clk 0:01:16.2]} 23... Kg8 {[%clk 0:00:51.3]} 24.
Bc4 {[%clk 0:01:10.5]} 24... Nxe6 {[%clk 0:00:41.9]} 25. Bxd5 {[%clk 0:01:10.1]}
25... Qb6 {[%clk 0:00:39.7]} 26. Re1 {[%clk 0:00:52]} 26... Rc6 {[%clk
0:00:38.9]} 27. Ng5 {[%clk 0:00:44.1]} 27... Rd8 {[%clk 0:00:27]} 28. Qb3 {[%clk
0:00:32.4]} 28... Kg7 {[%clk 0:00:15.4]} 29. Nxe6+ {[%clk 0:00:30.9]} 29... Rxe6
{[%clk 0:00:13.8]} 30. Bxe6 {[%clk 0:00:31.2]} 30... Qd4 {[%clk 0:00:11]} 31. h3
{[%clk 0:00:29.1]} 31... Rf8 {[%clk 0:00:09.6]} 32. Rf1 {[%clk 0:00:28]} 32...
Rf6 {[%clk 0:00:08.8]} 33. Bg4 {[%clk 0:00:27.2]} 33... h5 {[%clk 0:00:07.3]}
34. Bf3 {[%clk 0:00:27.2]} 34... g5 {[%clk 0:00:06.5]} 35. Rd1 {[%clk
0:00:26.4]} 35... Qc5 {[%clk 0:00:05]} 36. Qd5 {[%clk 0:00:25.1]} 36... Qc7
{[%clk 0:00:02.9]} 37. Qxg5+ {[%clk 0:00:24]} 37... Rg6 {[%clk 0:00:02.9]} 38.
Qxh5 {[%clk 0:00:21.9]} 38... Qf4 {[%clk 0:00:01.5]} 39. Qd5 {[%clk 0:00:20.5]}
1-0

[Event "*** Titled Tuesday Blitz"]
[Site "Chess.com"]
[Date "2020.12.29"]
[Round "8"]
[White "horripile"]
[Black "Oleksandr_Bortnyk"]
[Result "1-0"]
[WhiteElo "2704"]
[BlackElo "2904"]
[TimeControl "180+1"]
[EndTime "11:28:00 PST"]
[Termination "horripile won by resignation"]

1. e4 {[%clk 0:03:00.9]} 1... Nf6 {[%clk 0:02:57]} 2. e5 {[%clk 0:03:00.6]} 2...
Nd5 {[%clk 0:02:55.3]} 3. d4 {[%clk 0:03:00.6]} 3... d6 {[%clk 0:02:55.4]} 4.
Nf3 {[%clk 0:03:00.6]} 4... dxe5 {[%clk 0:02:55.5]} 5. Nxe5 {[%clk 0:03:01.5]}
5... c6 {[%clk 0:02:55.6]} 6. Bd3 {[%clk 0:02:51]} 6... Nd7 {[%clk 0:02:55.5]}
7. Nf3 {[%clk 0:02:50.6]} 7... N7f6 {[%clk 0:02:54.7]} 8. h3 {[%clk 0:02:48.8]}
8... Nb4 {[%clk 0:02:54.5]} 9. Bc4 {[%clk 0:02:39.1]} 9... Bf5 {[%clk
0:02:53.8]} 10. Bb3 {[%clk 0:02:38.5]} 10... e6 {[%clk 0:02:54]} 11. O-O {[%clk
0:02:38.4]} 11... Bd6 {[%clk 0:02:50.6]} 12. Nbd2 {[%clk 0:02:33]} 12... a5
{[%clk 0:02:48.5]} 13. a4 {[%clk 0:02:28.8]} 13... O-O {[%clk 0:02:48.1]} 14.
Nc4 {[%clk 0:02:29.1]} 14... Bc7 {[%clk 0:02:48.4]} 15. Nce5 {[%clk 0:02:27.9]}
15... h6 {[%clk 0:02:45.4]} 16. c3 {[%clk 0:02:27.9]} 16... Nbd5 {[%clk
0:02:44.3]} 17. Re1 {[%clk 0:02:28.5]} 17... Qe7 {[%clk 0:02:33.3]} 18. g4
{[%clk 0:02:18.9]} 18... Bh7 {[%clk 0:02:33.1]} 19. g5 {[%clk 0:02:19.4]} 19...
hxg5 {[%clk 0:02:29.7]} 20. Nxg5 {[%clk 0:02:17.9]} 20... Rad8 {[%clk
0:02:29.3]} 21. Nxh7 {[%clk 0:02:12.2]} 21... Nxh7 {[%clk 0:02:30.2]} 22. Qh5
{[%clk 0:02:09.9]} 22... c5 {[%clk 0:02:24.6]} 23. Bc2 {[%clk 0:01:58.2]} 23...
f5 {[%clk 0:02:09.4]} 24. Ng6 {[%clk 0:01:54.8]} 24... Qf7 {[%clk 0:02:09.1]}
25. Bg5 {[%clk 0:01:45]} 25... Rd7 {[%clk 0:01:49.8]} 26. dxc5 {[%clk
0:01:26.4]} 26... Bd8 {[%clk 0:01:46.2]} 27. h4 {[%clk 0:01:22.7]} 27... Bxg5
{[%clk 0:00:50.7]} 28. hxg5 {[%clk 0:01:22.4]} 28... Rc8 {[%clk 0:00:51.6]} 29.
Bb3 {[%clk 0:01:20]} 29... Rxc5 {[%clk 0:00:49.4]} 30. Rad1 {[%clk 0:01:18.6]}
30... f4 {[%clk 0:00:48.2]} 31. Re5 {[%clk 0:00:58.8]} 31... f3 {[%clk
0:00:41.1]} 32. Rde1 {[%clk 0:00:54.2]} 32... Rc6 {[%clk 0:00:25.3]} 33. Bxd5
{[%clk 0:00:42.9]} 33... Rxd5 {[%clk 0:00:16.9]} 34. Rxd5 {[%clk 0:00:43.2]}
34... exd5 {[%clk 0:00:17.8]} 35. Ne7+ {[%clk 0:00:43.7]} 35... Kf8 {[%clk
0:00:17.8]} 36. Qxf7+ {[%clk 0:00:43.5]} 36... Kxf7 {[%clk 0:00:18.7]} 37. Nxc6
{[%clk 0:00:44.1]} 37... bxc6 {[%clk 0:00:19.5]} 38. g6+ {[%clk 0:00:42.3]}
38... Kxg6 {[%clk 0:00:19.3]} 39. Re6+ {[%clk 0:00:42.9]} 39... Kf5 {[%clk
0:00:17.5]} 40. Rxc6 {[%clk 0:00:43.8]} 40... g5 {[%clk 0:00:16.5]} 41. Rc5
{[%clk 0:00:43.8]} 41... Nf6 {[%clk 0:00:17.2]} 42. Rxa5 {[%clk 0:00:43.7]}
42... g4 {[%clk 0:00:17.8]} 43. Ra8 {[%clk 0:00:41.8]} 43... Ne4 {[%clk
0:00:16.5]} 44. a5 {[%clk 0:00:40.4]} 44... g3 {[%clk 0:00:16.5]} 45. fxg3
{[%clk 0:00:39.2]} 45... Kg4 {[%clk 0:00:16.8]} 46. a6 {[%clk 0:00:35.7]} 46...
Kxg3 {[%clk 0:00:15.1]} 47. Rg8+ {[%clk 0:00:35.1]} 47... Kf4 {[%clk 0:00:15.6]}
48. a7 {[%clk 0:00:32.9]} 48... f2+ {[%clk 0:00:15.3]} 49. Kg2 {[%clk
0:00:32.8]} 49... Ke3 {[%clk 0:00:14.9]} 50. Rf8 {[%clk 0:00:32]} 50... d4
{[%clk 0:00:14.2]} 51. cxd4 {[%clk 0:00:31.8]} 51... f1=Q+ {[%clk 0:00:13.9]}
52. Rxf1 {[%clk 0:00:31.9]} 1-0

[Event "*** Titled Tuesday Blitz"]
[Site "Chess.com"]
[Date "2020.12.29"]
[Round "8"]
[White "crescentmoon2411"]
[Black "ElGasanov"]
[Result "0-1"]
[WhiteElo "2883"]
[BlackElo "2796"]
[TimeControl "180+1"]
[EndTime "11:28:02 PST"]
[Termination "ElGasanov won on time"]

1. e4 {[%clk 0:03:00.9]} 1... c5 {[%clk 0:02:59.2]} 2. Nf3 {[%clk 0:03:00.7]}
2... Nc6 {[%clk 0:02:58.1]} 3. Bb5 {[%clk 0:02:59.8]} 3... Nf6 {[%clk
0:02:57.8]} 4. Nc3 {[%clk 0:02:51.5]} 4... d6 {[%clk 0:02:57.8]} 5. d4 {[%clk
0:02:37.5]} 5... cxd4 {[%clk 0:02:54.4]} 6. Nxd4 {[%clk 0:02:31.4]} 6... Bd7
{[%clk 0:02:51.9]} 7. O-O {[%clk 0:02:29.2]} 7... e6 {[%clk 0:02:49.8]} 8. Nf3
{[%clk 0:02:16]} 8... Be7 {[%clk 0:02:40.8]} 9. Bf4 {[%clk 0:02:14.5]} 9... a6
{[%clk 0:02:34.4]} 10. Ba4 {[%clk 0:01:42.5]} 10... Qc7 {[%clk 0:02:25.5]} 11.
Qe2 {[%clk 0:01:39.9]} 11... O-O {[%clk 0:02:19.9]} 12. e5 {[%clk 0:01:25]}
12... dxe5 {[%clk 0:02:09.7]} 13. Nxe5 {[%clk 0:01:23.2]} 13... Nxe5 {[%clk
0:02:06.8]} 14. Bxe5 {[%clk 0:01:24.1]} 14... Qc8 {[%clk 0:02:02.1]} 15. Rad1
{[%clk 0:01:05.9]} 15... b5 {[%clk 0:01:45.5]} 16. Bb3 {[%clk 0:01:05.9]} 16...
Bc6 {[%clk 0:01:45.3]} 17. a4 {[%clk 0:00:41.1]} 17... Qb7 {[%clk 0:01:37.6]}
18. f3 {[%clk 0:00:24.7]} 18... Rfd8 {[%clk 0:01:24.4]} 19. Kh1 {[%clk 0:00:20]}
19... h6 {[%clk 0:01:05.6]} 20. axb5 {[%clk 0:00:17.8]} 20... axb5 {[%clk
0:01:05.2]} 21. Rxd8+ {[%clk 0:00:17.6]} 21... Rxd8 {[%clk 0:01:06]} 22. Rd1
{[%clk 0:00:18]} 22... Nd7 {[%clk 0:00:58.4]} 23. Bd4 {[%clk 0:00:17.3]} 23...
Nc5 {[%clk 0:00:55]} 24. Bxc5 {[%clk 0:00:14.9]} 24... Rxd1+ {[%clk 0:00:55.5]}
25. Qxd1 {[%clk 0:00:14.6]} 25... Bxc5 {[%clk 0:00:56.3]} 26. Qd8+ {[%clk
0:00:14]} 26... Kh7 {[%clk 0:00:54.6]} 27. Qd3+ {[%clk 0:00:13.9]} 27... g6
{[%clk 0:00:53.2]} 28. Ne4 {[%clk 0:00:13.8]} 28... Qa7 {[%clk 0:00:45.3]} 29.
Qf1 {[%clk 0:00:08.3]} 29... Be7 {[%clk 0:00:35.9]} 30. Qe1 {[%clk 0:00:06.2]}
30... Qd4 {[%clk 0:00:33.2]} 31. c3 {[%clk 0:00:06.2]} 31... Qd3 {[%clk
0:00:33.6]} 32. Nf2 {[%clk 0:00:05.5]} 32... Qf5 {[%clk 0:00:29.7]} 33. Qd1
{[%clk 0:00:04.1]} 33... Bc5 {[%clk 0:00:27.4]} 34. Bc2 {[%clk 0:00:04.1]} 34...
Qf4 {[%clk 0:00:25.1]} 35. Ne4 {[%clk 0:00:04]} 35... Be7 {[%clk 0:00:22.4]} 36.
Qe2 {[%clk 0:00:02.8]} 36... Qc1+ {[%clk 0:00:21.3]} 37. Qd1 {[%clk 0:00:03]}
37... Qxb2 {[%clk 0:00:20.6]} 38. g3 {[%clk 0:00:01.3]} 38... f5 {[%clk
0:00:18.3]} 0-1